[Event "*** Titled Tuesday Blitz"]
[Site "Chess.com"]
[Date "2020.11.24"]
[Round "10"]
[White "sopo-tereladze"]
[Black "bylavochka"]
[Result "1-0"]
[WhiteElo "2302"]
[BlackElo "2153"]
[TimeControl "180+1"]
[EndTime "12:12:59 PST"]
[Termination "sopo-tereladze won by resignation"]

1. e4 {[%clk 0:03:00.8]} 1... c5 {[%clk 0:02:59.3]} 2. Nf3 {[%clk 0:03:00.9]}
2... d6 {[%clk 0:02:59.3]} 3. d4 {[%clk 0:02:59.5]} 3... cxd4 {[%clk 0:03:00.2]}
4. Qxd4 {[%clk 0:02:58.6]} 4... Nc6 {[%clk 0:02:59.3]} 5. Bb5 {[%clk 0:02:58.9]}
5... Qa5+ {[%clk 0:02:59.2]} 6. Nc3 {[%clk 0:02:57.9]} 6... Bd7 {[%clk
0:02:58.5]} 7. Bxc6 {[%clk 0:02:56.9]} 7... bxc6 {[%clk 0:02:59.4]} 8. O-O
{[%clk 0:02:54.9]} 8... e5 {[%clk 0:02:58.2]} 9. Qd3 {[%clk 0:02:54.2]} 9... h6
{[%clk 0:02:58]} 10. Bd2 {[%clk 0:02:52.4]} 10... Qc7 {[%clk 0:02:57]} 11. Rad1
{[%clk 0:02:51.3]} 11... Rd8 {[%clk 0:02:56.1]} 12. Nh4 {[%clk 0:02:41.8]} 12...
Nf6 {[%clk 0:02:52.7]} 13. f4 {[%clk 0:02:41.2]} 13... Be7 {[%clk 0:02:40.2]}
14. Nf5 {[%clk 0:02:18.1]} 14... Bxf5 {[%clk 0:02:33.9]} 15. exf5 {[%clk
0:02:19]} 15... O-O {[%clk 0:02:29.6]} 16. fxe5 {[%clk 0:02:07.1]} 16... dxe5
{[%clk 0:02:30.5]} 17. Qg3 {[%clk 0:02:07.3]} 17... Kh7 {[%clk 0:02:25.2]} 18.
Be3 {[%clk 0:02:06.9]} 18... Nd5 {[%clk 0:02:15.1]} 19. Ne4 {[%clk 0:01:59.1]}
19... Nxe3 {[%clk 0:02:11.6]} 20. Qxe3 {[%clk 0:02:00]} 20... Rxd1 {[%clk
0:02:07.5]} 21. Rxd1 {[%clk 0:01:58.9]} 21... Rd8 {[%clk 0:02:03.9]} 22. Rxd8
{[%clk 0:01:57.6]} 22... Qxd8 {[%clk 0:01:49.3]} 23. h3 {[%clk 0:01:53.3]} 23...
Qb6 {[%clk 0:01:30.2]} 24. Qxb6 {[%clk 0:01:52.5]} 24... axb6 {[%clk 0:01:31.1]}
25. Kf2 {[%clk 0:01:51.5]} 25... g6 {[%clk 0:01:30.3]} 26. g4 {[%clk 0:01:49.6]}
26... gxf5 {[%clk 0:01:11.6]} 27. gxf5 {[%clk 0:01:50.5]} 27... Kg7 {[%clk
0:01:08.4]} 28. a4 {[%clk 0:01:49.6]} 28... Kf8 {[%clk 0:00:49.7]} 29. Kf3
{[%clk 0:01:48.5]} 29... Ke8 {[%clk 0:00:42.5]} 30. f6 {[%clk 0:01:47.1]} 30...
Bf8 {[%clk 0:00:42.3]} 31. Kg4 {[%clk 0:01:44.7]} 31... Kd7 {[%clk 0:00:37.4]}
32. Kf5 {[%clk 0:01:45.6]} 32... Bd6 {[%clk 0:00:29.6]} 33. Nxd6 {[%clk
0:01:30.9]} 33... Kxd6 {[%clk 0:00:29.3]} 34. b4 {[%clk 0:01:23.2]} 34... Kd5
{[%clk 0:00:18.1]} 35. a5 {[%clk 0:01:21.1]} 35... bxa5 {[%clk 0:00:15.4]} 36.
bxa5 {[%clk 0:01:22]} 36... e4 {[%clk 0:00:16.2]} 37. Kf4 {[%clk 0:01:16]} 37...
Kd4 {[%clk 0:00:16.1]} 38. a6 {[%clk 0:01:14.6]} 38... e3 {[%clk 0:00:10.3]} 39.
Kf3 {[%clk 0:01:14.2]} 1-0

[Event "*** Titled Tuesday Blitz"]
[Site "Chess.com"]
[Date "2020.11.24"]
[Round "10"]
[White "PawnEatingZombie"]
[Black "GAusal"]
[Result "0-1"]
[WhiteElo "2247"]
[BlackElo "2041"]
[TimeControl "180+1"]
[EndTime "12:13:00 PST"]
[Termination "GAusal won by resignation"]

1. d4 {[%clk 0:03:00.9]} 1... d5 {[%clk 0:02:59.4]} 2. c4 {[%clk 0:03:00.7]}
2... c6 {[%clk 0:02:59.3]} 3. Nc3 {[%clk 0:03:00.5]} 3... Nf6 {[%clk 0:02:58.4]}
4. e3 {[%clk 0:03:00.5]} 4... Bf5 {[%clk 0:02:57.2]} 5. cxd5 {[%clk 0:02:59.8]}
5... Nxd5 {[%clk 0:02:53.9]} 6. Nge2 {[%clk 0:02:54.8]} 6... Bg6 {[%clk
0:02:50.2]} 7. e4 {[%clk 0:02:49.3]} 7... Nxc3 {[%clk 0:02:47.2]} 8. Nxc3 {[%clk
0:02:49.1]} 8... e6 {[%clk 0:02:45.4]} 9. Be3 {[%clk 0:02:45.8]} 9... Bb4 {[%clk
0:02:44.4]} 10. f3 {[%clk 0:02:45.4]} 10... O-O {[%clk 0:02:43.2]} 11. Bc4
{[%clk 0:02:43.7]} 11... Nd7 {[%clk 0:02:37.8]} 12. O-O {[%clk 0:02:41.7]} 12...
Be7 {[%clk 0:02:22]} 13. Qe2 {[%clk 0:02:40.6]} 13... Qc7 {[%clk 0:02:19.3]} 14.
Rac1 {[%clk 0:02:37.7]} 14... Qa5 {[%clk 0:02:16.1]} 15. Rfd1 {[%clk 0:02:34.1]}
15... Rfd8 {[%clk 0:02:14.8]} 16. a3 {[%clk 0:02:33]} 16... Nf6 {[%clk
0:02:11.5]} 17. Ba2 {[%clk 0:02:22]} 17... Rac8 {[%clk 0:02:04.2]} 18. Bb1
{[%clk 0:01:44.9]} 18... h6 {[%clk 0:02:00.1]} 19. g4 {[%clk 0:01:34.1]} 19...
a6 {[%clk 0:01:40.1]} 20. Qf2 {[%clk 0:01:33.6]} 20... Nh7 {[%clk 0:01:27.5]}
21. h4 {[%clk 0:01:31.1]} 21... Rd7 {[%clk 0:01:23.2]} 22. h5 {[%clk 0:01:30.2]}
22... Bxh5 {[%clk 0:01:15.4]} 23. gxh5 {[%clk 0:01:29.8]} 23... Qxh5 {[%clk
0:01:13.7]} 24. Qg2 {[%clk 0:01:27.4]} 24... Bg5 {[%clk 0:01:07.7]} 25. Bxg5
{[%clk 0:01:24.1]} 25... Nxg5 {[%clk 0:01:07.1]} 26. Rd3 {[%clk 0:01:00.8]}
26... Nh3+ {[%clk 0:01:04.4]} 27. Kf1 {[%clk 0:00:50.8]} 27... Nf4 {[%clk
0:01:03.5]} 28. Qf2 {[%clk 0:00:36.8]} 28... Nxd3 {[%clk 0:00:54.8]} 29. Bxd3
{[%clk 0:00:35.7]} 29... Qh1+ {[%clk 0:00:49.2]} 30. Ke2 {[%clk 0:00:13]} 30...
Qxc1 {[%clk 0:00:47.4]} 31. e5 {[%clk 0:00:13.5]} 31... Qxb2+ {[%clk 0:00:44.8]}
0-1

[Event "*** Titled Tuesday Blitz"]
[Site "Chess.com"]
[Date "2020.11.24"]
[Round "10"]
[White "DoHoChess"]
[Black "SlavenPastar"]
[Result "1-0"]
[WhiteElo "2690"]
[BlackElo "2503"]
[TimeControl "180+1"]
[EndTime "12:13:02 PST"]
[Termination "DoHoChess won on time"]

1. Nf3 {[%clk 0:03:00.9]} 1... b6 {[%clk 0:03:00.9]} 2. e4 {[%clk 0:02:59.7]}
2... Bb7 {[%clk 0:03:01]} 3. Nc3 {[%clk 0:03:00.1]} 3... e6 {[%clk 0:03:00.8]}
4. d4 {[%clk 0:03:00.4]} 4... Bb4 {[%clk 0:03:00]} 5. Bd3 {[%clk 0:03:01.1]}
5... Nf6 {[%clk 0:03:00.2]} 6. e5 {[%clk 0:03:00.7]} 6... Ne4 {[%clk 0:02:59]}
7. O-O {[%clk 0:03:00.6]} 7... Nxc3 {[%clk 0:02:58.7]} 8. bxc3 {[%clk
0:03:00.8]} 8... Bxc3 {[%clk 0:02:59.6]} 9. Rb1 {[%clk 0:03:01]} 9... Nc6 {[%clk
0:02:58.1]} 10. Be3 {[%clk 0:02:41.6]} 10... Bb4 {[%clk 0:02:49]} 11. Ng5 {[%clk
0:02:35.9]} 11... g6 {[%clk 0:02:19.6]} 12. Qf3 {[%clk 0:02:27.6]} 12... Qe7
{[%clk 0:02:16.8]} 13. Rxb4 {[%clk 0:02:27]} 13... Nxb4 {[%clk 0:01:42.4]} 14.
Qxb7 {[%clk 0:02:26.3]} 14... O-O {[%clk 0:01:40.5]} 15. Ne4 {[%clk 0:02:08.2]}
15... Rfc8 {[%clk 0:00:57.6]} 16. Bg5 {[%clk 0:01:59.8]} 16... Qf8 {[%clk
0:00:42.7]} 17. Nf6+ {[%clk 0:02:00]} 17... Kh8 {[%clk 0:00:42.9]} 18. Qf3
{[%clk 0:01:47.9]} 18... Nd5 {[%clk 0:00:36]} 19. Ng4 {[%clk 0:01:39.7]} 19...
h5 {[%clk 0:00:30]} 20. Nh6 {[%clk 0:01:26.9]} 20... Kg7 {[%clk 0:00:19.9]} 21.
c4 {[%clk 0:01:25.2]} 21... Nb4 {[%clk 0:00:19]} 22. Qf6+ {[%clk 0:01:18.4]}
22... Kh7 {[%clk 0:00:18.7]} 23. Bb1 {[%clk 0:01:13.9]} 23... Qg7 {[%clk
0:00:15]} 24. Qf3 {[%clk 0:01:13.4]} 24... Nc6 {[%clk 0:00:13.4]} 25. Qxh5
{[%clk 0:01:06.4]} 25... Nxd4 {[%clk 0:00:07.9]} 26. Nxf7+ {[%clk 0:01:01.5]}
26... Kg8 {[%clk 0:00:07.1]} 27. Bxg6 {[%clk 0:01:01.4]} 27... Ne2+ {[%clk
0:00:04.2]} 28. Kh1 {[%clk 0:00:59.9]} 28... Rf8 {[%clk 0:00:04.4]} 29. Nh6+
{[%clk 0:00:57.5]} 29... Kh8 {[%clk 0:00:02.1]} 30. Nf5+ {[%clk 0:00:57.5]}
30... Kg8 {[%clk 0:00:02.6]} 31. Nxg7 {[%clk 0:00:57.5]} 31... Ng3+ {[%clk
0:00:03]} 32. hxg3 {[%clk 0:00:57]} 1-0

[Event "*** Titled Tuesday Blitz"]
[Site "Chess.com"]
[Date "2020.11.24"]
[Round "10"]
[White "Nemsko"]
[Black "chenxiaoyuer"]
[Result "0-1"]
[WhiteElo "2364"]
[BlackElo "2507"]
[TimeControl "180+1"]
[EndTime "12:13:03 PST"]
[Termination "chenxiaoyuer won by checkmate"]

1. e4 {[%clk 0:03:00.9]} 1... c5 {[%clk 0:02:59.7]} 2. Nf3 {[%clk 0:02:59.2]}
2... d6 {[%clk 0:02:59.8]} 3. d4 {[%clk 0:02:58.6]} 3... cxd4 {[%clk 0:03:00.3]}
4. Nxd4 {[%clk 0:02:59.5]} 4... Nf6 {[%clk 0:03:00.5]} 5. Nc3 {[%clk 0:02:59.2]}
5... Nc6 {[%clk 0:03:00.7]} 6. Bg5 {[%clk 0:02:57.8]} 6... e6 {[%clk 0:03:00.4]}
7. Qd2 {[%clk 0:02:57.5]} 7... Qb6 {[%clk 0:03:00.4]} 8. Nb3 {[%clk 0:02:52.4]}
8... Be7 {[%clk 0:02:58.9]} 9. O-O-O {[%clk 0:02:49.9]} 9... O-O {[%clk
0:02:58.7]} 10. f4 {[%clk 0:02:42.8]} 10... Rd8 {[%clk 0:02:54.4]} 11. Bd3
{[%clk 0:02:38]} 11... h6 {[%clk 0:02:53.9]} 12. Bh4 {[%clk 0:02:37.2]} 12...
Nxe4 {[%clk 0:02:46.1]} 13. Nxe4 {[%clk 0:02:27.4]} 13... Bxh4 {[%clk
0:02:44.8]} 14. g4 {[%clk 0:02:27.9]} 14... d5 {[%clk 0:02:36.2]} 15. Ng3 {[%clk
0:02:15.6]} 15... a5 {[%clk 0:02:29.6]} 16. a4 {[%clk 0:01:56]} 16... Qb4 {[%clk
0:02:06.9]} 17. Nh5 {[%clk 0:01:30.9]} 17... g6 {[%clk 0:01:48.8]} 18. Ng3
{[%clk 0:01:28.3]} 18... e5 {[%clk 0:01:24]} 19. Qxb4 {[%clk 0:01:21.9]} 19...
axb4 {[%clk 0:01:23.1]} 20. fxe5 {[%clk 0:01:20.5]} 20... Nxe5 {[%clk
0:01:21.1]} 21. Bb5 {[%clk 0:01:18.1]} 21... Nxg4 {[%clk 0:01:18.2]} 22. Rd4
{[%clk 0:01:15.2]} 22... Bg5+ {[%clk 0:01:12.7]} 23. Kb1 {[%clk 0:01:14.8]}
23... Be3 {[%clk 0:01:09.2]} 24. Rxb4 {[%clk 0:01:10.1]} 24... Be6 {[%clk
0:01:00.7]} 25. Be2 {[%clk 0:01:02.6]} 25... Nf2 {[%clk 0:00:51.4]} 26. Rf1
{[%clk 0:00:53.9]} 26... d4 {[%clk 0:00:50.4]} 27. Bf3 {[%clk 0:00:41.7]} 27...
d3 {[%clk 0:00:44.4]} 28. cxd3 {[%clk 0:00:35.8]} 28... Rxd3 {[%clk 0:00:40.2]}
29. Bxb7 {[%clk 0:00:18.7]} 29... Rad8 {[%clk 0:00:29.8]} 30. Na5 {[%clk
0:00:18.8]} 30... Rd1+ {[%clk 0:00:29.5]} 31. Rxd1 {[%clk 0:00:19]} 31... Rxd1+
{[%clk 0:00:29.8]} 32. Kc2 {[%clk 0:00:19.7]} 32... Rc1# {[%clk 0:00:30]} 0-1

[Event "*** Titled Tuesday Blitz"]
[Site "Chess.com"]
[Date "2020.11.24"]
[Round "10"]
[White "bratkoo"]
[Black "temus_galaktionov"]
[Result "1-0"]
[WhiteElo "2550"]
[BlackElo "2678"]
[TimeControl "180+1"]
[EndTime "12:13:04 PST"]
[Termination "bratkoo won by checkmate"]

1. e4 {[%clk 0:03:00.7]} 1... c6 {[%clk 0:03:00.9]} 2. d4 {[%clk 0:02:59.2]}
2... g6 {[%clk 0:03:01.8]} 3. Nc3 {[%clk 0:02:58.6]} 3... Bg7 {[%clk 0:03:01.2]}
4. f4 {[%clk 0:02:58.8]} 4... d6 {[%clk 0:03:01.1]} 5. Nf3 {[%clk 0:02:58.6]}
5... Nd7 {[%clk 0:03:01.5]} 6. Bd3 {[%clk 0:02:56.5]} 6... e5 {[%clk 0:03:02.4]}
7. fxe5 {[%clk 0:02:55]} 7... dxe5 {[%clk 0:03:01.4]} 8. d5 {[%clk 0:02:39.9]}
8... Ngf6 {[%clk 0:03:00.2]} 9. Bg5 {[%clk 0:02:37.9]} 9... h6 {[%clk
0:02:59.8]} 10. Bh4 {[%clk 0:02:35.5]} 10... O-O {[%clk 0:02:59]} 11. O-O {[%clk
0:02:34.4]} 11... Qb6+ {[%clk 0:02:58.3]} 12. Bf2 {[%clk 0:02:34.2]} 12... Qxb2
{[%clk 0:02:58]} 13. Qd2 {[%clk 0:02:28]} 13... Qa3 {[%clk 0:02:57.6]} 14. dxc6
{[%clk 0:02:15.7]} 14... bxc6 {[%clk 0:02:57]} 15. Rab1 {[%clk 0:02:15.3]} 15...
Ng4 {[%clk 0:02:44.4]} 16. Bg3 {[%clk 0:02:15]} 16... Qc5+ {[%clk 0:02:43.9]}
17. Kh1 {[%clk 0:02:15.6]} 17... Nb6 {[%clk 0:02:29.5]} 18. h3 {[%clk
0:02:14.8]} 18... Ne3 {[%clk 0:02:29.3]} 19. Rfe1 {[%clk 0:02:04.1]} 19... Nec4
{[%clk 0:02:28.9]} 20. Qe2 {[%clk 0:02:03.9]} 20... Be6 {[%clk 0:02:27.8]} 21.
Bf2 {[%clk 0:02:01.9]} 21... Qa5 {[%clk 0:02:27.5]} 22. Nd1 {[%clk 0:01:56.6]}
22... c5 {[%clk 0:02:17.6]} 23. Ne3 {[%clk 0:01:56.4]} 23... Nxe3 {[%clk
0:02:17.3]} 24. Qxe3 {[%clk 0:01:54.5]} 24... c4 {[%clk 0:02:12.2]} 25. Bf1
{[%clk 0:01:54.1]} 25... Rac8 {[%clk 0:02:09.4]} 26. a3 {[%clk 0:01:50]} 26...
Rfd8 {[%clk 0:02:08.5]} 27. Bg3 {[%clk 0:01:42.9]} 27... Na4 {[%clk 0:02:05]}
28. Rb4 {[%clk 0:01:39.7]} 28... f6 {[%clk 0:01:55.6]} 29. Reb1 {[%clk
0:01:32.5]} 29... Bf8 {[%clk 0:01:54.6]} 30. Rb7 {[%clk 0:01:31.4]} 30... Rc7
{[%clk 0:01:53.3]} 31. Nh4 {[%clk 0:01:17.6]} 31... Bf7 {[%clk 0:01:44]} 32.
R1b5 {[%clk 0:01:17.2]} 32... Qc3 {[%clk 0:01:35.1]} 33. Qxc3 {[%clk 0:01:02.5]}
33... Nxc3 {[%clk 0:01:34.7]} 34. Rxc7 {[%clk 0:01:02.8]} 34... Nxb5 {[%clk
0:01:34.4]} 35. Rxf7 {[%clk 0:01:03]} 35... Rd1 {[%clk 0:01:29]} 36. Rxf6 {[%clk
0:01:02.3]} 36... Be7 {[%clk 0:01:23.1]} 37. Rf3 {[%clk 0:00:55.2]} 37... Nd4
{[%clk 0:01:12]} 38. Rf2 {[%clk 0:00:51.1]} 38... Bxh4 {[%clk 0:01:09.7]} 39.
Bxh4 {[%clk 0:00:50.9]} 39... c3 {[%clk 0:01:07.9]} 40. Kh2 {[%clk 0:00:50.6]}
40... Rd2 {[%clk 0:01:04.4]} 41. Bc4+ {[%clk 0:00:49.3]} 41... Kg7 {[%clk
0:00:57.5]} 42. Rf7+ {[%clk 0:00:47.2]} 42... Kh8 {[%clk 0:00:56.9]} 43. Bf6+
{[%clk 0:00:47.1]} 43... Kg8 {[%clk 0:00:57]} 44. Rg7+ {[%clk 0:00:43.6]} 44...
Kh8 {[%clk 0:00:53.6]} 45. Rxa7# {[%clk 0:00:39.5]} 1-0

[Event "*** Titled Tuesday Blitz"]
[Site "Chess.com"]
[Date "2020.11.24"]
[Round "10"]
[White "sbouchet"]
[Black "Harry_Rakkel"]
[Result "1-0"]
[WhiteElo "2332"]
[BlackElo "2462"]
[TimeControl "180+1"]
[EndTime "12:13:11 PST"]
[Termination "sbouchet won on time"]

1. e4 {[%clk 0:02:59.5]} 1... g6 {[%clk 0:02:59.5]} 2. h4 {[%clk 0:02:58.3]}
2... h5 {[%clk 0:02:56.6]} 3. d4 {[%clk 0:02:57.2]} 3... Bg7 {[%clk 0:02:56]} 4.
Nc3 {[%clk 0:02:57.4]} 4... a6 {[%clk 0:02:54.3]} 5. a4 {[%clk 0:02:52.6]} 5...
b6 {[%clk 0:02:53.4]} 6. Be3 {[%clk 0:02:52.1]} 6... Bb7 {[%clk 0:02:53.8]} 7.
f3 {[%clk 0:02:48.6]} 7... d6 {[%clk 0:02:52.7]} 8. Qd2 {[%clk 0:02:47.6]} 8...
c5 {[%clk 0:02:51.3]} 9. d5 {[%clk 0:02:44.4]} 9... Nd7 {[%clk 0:02:50.2]} 10.
Nh3 {[%clk 0:02:43.2]} 10... Qc7 {[%clk 0:02:46.9]} 11. Ng5 {[%clk 0:02:42.2]}
11... Ne5 {[%clk 0:02:41.5]} 12. Be2 {[%clk 0:02:38.7]} 12... Nf6 {[%clk
0:02:39.3]} 13. O-O {[%clk 0:02:35.4]} 13... Bc8 {[%clk 0:02:12.1]} 14. Rfb1
{[%clk 0:01:35.4]} 14... O-O {[%clk 0:01:51.2]} 15. b4 {[%clk 0:01:35.1]} 15...
cxb4 {[%clk 0:01:43.7]} 16. Rxb4 {[%clk 0:01:36]} 16... Ned7 {[%clk 0:01:24.5]}
17. Rab1 {[%clk 0:01:33.3]} 17... Rb8 {[%clk 0:01:08.3]} 18. Kh1 {[%clk
0:01:22.2]} 18... Nc5 {[%clk 0:01:07.2]} 19. Bd4 {[%clk 0:01:22.4]} 19... Bd7
{[%clk 0:01:03.2]} 20. Bxc5 {[%clk 0:01:13.8]} 20... bxc5 {[%clk 0:00:55]} 21.
Rxb8 {[%clk 0:01:13.7]} 21... Rxb8 {[%clk 0:00:55.4]} 22. Rxb8+ {[%clk
0:01:13.8]} 22... Qxb8 {[%clk 0:00:56.3]} 23. Bxa6 {[%clk 0:01:13.8]} 23... Qb2
{[%clk 0:00:53.9]} 24. Bb5 {[%clk 0:01:08.1]} 24... Qa1+ {[%clk 0:00:31.9]} 25.
Kh2 {[%clk 0:01:06.8]} 25... Ng4+ {[%clk 0:00:31.3]} 26. fxg4 {[%clk 0:01:04.7]}
26... Bxc3 {[%clk 0:00:31.1]} 27. Qf2 {[%clk 0:01:00.1]} 27... Be5+ {[%clk
0:00:18]} 28. g3 {[%clk 0:01:00.1]} 28... f6 {[%clk 0:00:10.6]} 29. Bxd7 {[%clk
0:00:59]} 29... hxg4 {[%clk 0:00:09.7]} 30. Be6+ {[%clk 0:00:57.6]} 30... Kg7
{[%clk 0:00:09.2]} 31. Nf7 {[%clk 0:00:57.3]} 31... Qxa4 {[%clk 0:00:08.4]} 32.
Nxe5 {[%clk 0:00:57]} 32... dxe5 {[%clk 0:00:07.9]} 33. Qxc5 {[%clk 0:00:57]}
33... Kh6 {[%clk 0:00:02.5]} 34. Qe3+ {[%clk 0:00:54.3]} 1-0

[Event "*** Titled Tuesday Blitz"]
[Site "Chess.com"]
[Date "2020.11.24"]
[Round "10"]
[White "anon569"]
[Black "dopolian"]
[Result "0-1"]
[WhiteElo "2298"]
[BlackElo "2422"]
[TimeControl "180+1"]
[EndTime "12:13:16 PST"]
[Termination "dopolian won on time"]

1. e4 {[%clk 0:03:00.9]} 1... Nf6 {[%clk 0:03:00.9]} 2. e5 {[%clk 0:03:00.2]}
2... Nd5 {[%clk 0:03:01.2]} 3. d4 {[%clk 0:02:59.5]} 3... d6 {[%clk 0:03:00.7]}
4. c4 {[%clk 0:02:59.1]} 4... Nb6 {[%clk 0:03:00.9]} 5. exd6 {[%clk 0:02:59.5]}
5... cxd6 {[%clk 0:02:59.5]} 6. Nf3 {[%clk 0:02:59.1]} 6... Nc6 {[%clk
0:02:58.8]} 7. h3 {[%clk 0:02:58.2]} 7... g6 {[%clk 0:02:58.5]} 8. Be2 {[%clk
0:02:58]} 8... Bg7 {[%clk 0:02:58.7]} 9. O-O {[%clk 0:02:57.5]} 9... O-O {[%clk
0:02:57.7]} 10. Nc3 {[%clk 0:02:57.2]} 10... Bf5 {[%clk 0:02:56.1]} 11. Be3
{[%clk 0:02:55.6]} 11... d5 {[%clk 0:02:53.2]} 12. c5 {[%clk 0:02:55.3]} 12...
Nc8 {[%clk 0:02:53.2]} 13. Qb3 {[%clk 0:02:49.1]} 13... e5 {[%clk 0:02:46]} 14.
dxe5 {[%clk 0:02:32.7]} 14... d4 {[%clk 0:02:24.2]} 15. Rfd1 {[%clk 0:02:29.7]}
15... d3 {[%clk 0:02:21.2]} 16. Qxb7 {[%clk 0:02:10.9]} 16... N8e7 {[%clk
0:02:19.1]} 17. Qa6 {[%clk 0:02:10.2]} 17... Nb4 {[%clk 0:02:11]} 18. Qc4 {[%clk
0:02:05.6]} 18... Nc2 {[%clk 0:02:11.1]} 19. Bxd3 {[%clk 0:01:48.2]} 19... Qa5
{[%clk 0:01:42.1]} 20. Bxc2 {[%clk 0:01:35.3]} 20... Bxc2 {[%clk 0:01:42.2]} 21.
Rd2 {[%clk 0:01:30.9]} 21... Bf5 {[%clk 0:01:38.2]} 22. b4 {[%clk 0:01:27.1]}
22... Qa3 {[%clk 0:01:30]} 23. Rd6 {[%clk 0:00:51.6]} 23... Nc8 {[%clk
0:01:21.3]} 24. Ra6 {[%clk 0:00:15.7]} 24... Qb2 {[%clk 0:01:11.7]} 25. Re1
{[%clk 0:00:15.4]} 25... Rd8 {[%clk 0:01:06.3]} 26. Nd5 {[%clk 0:00:09.9]} 26...
Be6 {[%clk 0:00:48.3]} 27. Rd1 {[%clk 0:00:02.7]} 27... Rxd5 {[%clk 0:00:38.6]}
28. Rxd5 {[%clk 0:00:02]} 28... Ne7 {[%clk 0:00:39.4]} 0-1

[Event "*** Titled Tuesday Blitz"]
[Site "Chess.com"]
[Date "2020.11.24"]
[Round "10"]
[White "FMJoseHerrera"]
[Black "kot60"]
[Result "1-0"]
[WhiteElo "2584"]
[BlackElo "2460"]
[TimeControl "180+1"]
[EndTime "12:13:18 PST"]
[Termination "FMJoseHerrera won by checkmate"]

1. Nf3 {[%clk 0:02:58.2]} 1... Nf6 {[%clk 0:02:59.5]} 2. g3 {[%clk 0:02:56.7]}
2... g6 {[%clk 0:02:59.7]} 3. Bg2 {[%clk 0:02:56.7]} 3... Bg7 {[%clk 0:03:00.2]}
4. d3 {[%clk 0:02:57]} 4... O-O {[%clk 0:03:00.3]} 5. Nc3 {[%clk 0:02:57.9]}
5... c5 {[%clk 0:03:00.1]} 6. h4 {[%clk 0:02:58.8]} 6... h5 {[%clk 0:02:56.2]}
7. Bg5 {[%clk 0:02:57.1]} 7... d6 {[%clk 0:02:55.2]} 8. Qd2 {[%clk 0:02:55.8]}
8... Nc6 {[%clk 0:02:54.9]} 9. Bh6 {[%clk 0:02:55.5]} 9... Ng4 {[%clk
0:02:53.3]} 10. Bxg7 {[%clk 0:02:52.8]} 10... Kxg7 {[%clk 0:02:54.2]} 11. e4
{[%clk 0:02:51.9]} 11... e5 {[%clk 0:02:49.6]} 12. Ng5 {[%clk 0:02:50.3]} 12...
f6 {[%clk 0:02:47]} 13. Nh3 {[%clk 0:02:48.8]} 13... Nd4 {[%clk 0:02:45.3]} 14.
f3 {[%clk 0:02:47.7]} 14... Nh6 {[%clk 0:02:44.7]} 15. Nf2 {[%clk 0:02:46.6]}
15... b5 {[%clk 0:02:40.4]} 16. Nd5 {[%clk 0:02:45]} 16... Be6 {[%clk
0:02:34.4]} 17. c3 {[%clk 0:02:42.5]} 17... Nc6 {[%clk 0:02:32.5]} 18. O-O-O
{[%clk 0:02:41]} 18... a5 {[%clk 0:02:30.4]} 19. g4 {[%clk 0:02:39.9]} 19... a4
{[%clk 0:02:11]} 20. gxh5 {[%clk 0:02:11.4]} 20... gxh5 {[%clk 0:02:10.1]} 21.
Rhg1 {[%clk 0:02:09.3]} 21... Kh7 {[%clk 0:02:07.4]} 22. Bh3 {[%clk 0:01:57.1]}
22... Bxd5 {[%clk 0:02:05.6]} 23. exd5 {[%clk 0:01:52.8]} 23... Ne7 {[%clk
0:02:05]} 24. Be6 {[%clk 0:01:51.4]} 24... Ra7 {[%clk 0:01:46.5]} 25. Ne4 {[%clk
0:01:41.6]} 25... Nef5 {[%clk 0:01:43.9]} 26. Rg2 {[%clk 0:01:29.3]} 26... Nxh4
{[%clk 0:01:39.3]} 27. Rg3 {[%clk 0:01:15.7]} 27... Ng6 {[%clk 0:01:36.6]} 28.
Rxg6 {[%clk 0:00:44.1]} 28... Kxg6 {[%clk 0:01:35.9]} 29. Rh1 {[%clk 0:00:40.1]}
29... Rh8 {[%clk 0:01:00.1]} 30. Qg2+ {[%clk 0:00:36.9]} 30... Kh7 {[%clk
0:00:59.4]} 31. Rxh5 {[%clk 0:00:36.8]} 31... Rg7 {[%clk 0:00:43]} 32. Qh2
{[%clk 0:00:36.5]} 32... Kg6 {[%clk 0:00:40.1]} 33. Bf5+ {[%clk 0:00:17.2]}
33... Nxf5 {[%clk 0:00:29.9]} 34. Rxh8 {[%clk 0:00:17.3]} 34... Qe7 {[%clk
0:00:28.1]} 35. Qh5# {[%clk 0:00:17]} 1-0

[Event "*** Titled Tuesday Blitz"]
[Site "Chess.com"]
[Date "2020.11.24"]
[Round "10"]
[White "Brave_spirit12"]
[Black "HackingKid98"]
[Result "1-0"]
[WhiteElo "2492"]
[BlackElo "2314"]
[TimeControl "180+1"]
[EndTime "12:13:24 PST"]
[Termination "Brave_spirit12 won by checkmate"]

1. e4 {[%clk 0:03:00.9]} 1... c6 {[%clk 0:02:58.5]} 2. Nc3 {[%clk 0:03:00.3]}
2... d5 {[%clk 0:02:58.3]} 3. Nf3 {[%clk 0:03:01.2]} 3... dxe4 {[%clk
0:02:48.4]} 4. Nxe4 {[%clk 0:03:02.1]} 4... Nf6 {[%clk 0:02:47.8]} 5. Nxf6+
{[%clk 0:03:01.1]} 5... exf6 {[%clk 0:02:48.7]} 6. Bc4 {[%clk 0:03:01.8]} 6...
Bd6 {[%clk 0:02:45.6]} 7. Qe2+ {[%clk 0:03:01]} 7... Qe7 {[%clk 0:02:43.5]} 8.
Qxe7+ {[%clk 0:03:00.5]} 8... Bxe7 {[%clk 0:02:42]} 9. O-O {[%clk 0:03:01.4]}
9... O-O {[%clk 0:02:41.5]} 10. d4 {[%clk 0:02:59.3]} 10... Nd7 {[%clk
0:02:40.8]} 11. Bf4 {[%clk 0:02:56]} 11... Nb6 {[%clk 0:02:40.2]} 12. Bb3 {[%clk
0:02:55.3]} 12... Nd5 {[%clk 0:02:40]} 13. Bxd5 {[%clk 0:02:54.4]} 13... cxd5
{[%clk 0:02:39.4]} 14. Rfe1 {[%clk 0:02:54.9]} 14... Be6 {[%clk 0:02:39.1]} 15.
c4 {[%clk 0:02:49.4]} 15... Rfd8 {[%clk 0:02:36.4]} 16. c5 {[%clk 0:02:48.6]}
16... a5 {[%clk 0:02:20.5]} 17. a3 {[%clk 0:02:34.5]} 17... a4 {[%clk 0:02:16]}
18. b4 {[%clk 0:02:26.4]} 18... axb3 {[%clk 0:01:46.4]} 19. Reb1 {[%clk
0:02:25.3]} 19... Bd7 {[%clk 0:01:29.2]} 20. Rxb3 {[%clk 0:02:21.7]} 20... Bc6
{[%clk 0:01:29.1]} 21. h4 {[%clk 0:02:16]} 21... Ra4 {[%clk 0:01:26.1]} 22. Re1
{[%clk 0:02:10.8]} 22... Bf8 {[%clk 0:01:22.4]} 23. g4 {[%clk 0:02:03.4]} 23...
Rda8 {[%clk 0:01:20.1]} 24. Ree3 {[%clk 0:01:55.9]} 24... h6 {[%clk 0:01:15.9]}
25. h5 {[%clk 0:01:53]} 25... Rc4 {[%clk 0:01:06.6]} 26. Kg2 {[%clk 0:01:46.2]}
26... Rc2 {[%clk 0:01:03.3]} 27. Rec3 {[%clk 0:01:33.2]} 27... Ra2 {[%clk
0:01:00]} 28. Re3 {[%clk 0:01:26.1]} 28... Ra4 {[%clk 0:00:42.6]} 29. Rbc3
{[%clk 0:01:18.9]} 29... Kh7 {[%clk 0:00:40.8]} 30. Bd6 {[%clk 0:01:10.5]} 30...
Bxd6 {[%clk 0:00:19.7]} 31. cxd6 {[%clk 0:01:11.4]} 31... Ra8 {[%clk 0:00:18.1]}
32. Nh4 {[%clk 0:01:02.9]} 32... Rd8 {[%clk 0:00:17.5]} 33. Nf5 {[%clk
0:01:03.4]} 33... Bd7 {[%clk 0:00:17.5]} 34. Re7 {[%clk 0:00:56.2]} 34... Bxf5
{[%clk 0:00:16.6]} 35. gxf5 {[%clk 0:00:57.1]} 35... Rxd6 {[%clk 0:00:16.3]} 36.
Rxf7 {[%clk 0:00:57.2]} 36... Rc6 {[%clk 0:00:11]} 37. Rg3 {[%clk 0:00:56.1]}
37... Rcc2 {[%clk 0:00:08.7]} 38. Rfxg7+ {[%clk 0:00:55.8]} 38... Kh8 {[%clk
0:00:07.9]} 39. Rg8+ {[%clk 0:00:56.7]} 39... Kh7 {[%clk 0:00:07.8]} 40. R3g7#
{[%clk 0:00:57.6]} 1-0